{"text_format":"3","workbook":"xlsx","n_sheets":6,"sheets":["SEMESTER","STUDIEPOENG","BUDSJETT","NETTO MÅNEDLIGE UTGIFTER","SEMESTERUTGIFTER","BØKER"],"not_rendered":{"defined_names":21},"read":"whole","date_system":"1900"}

{"sheet":"SEMESTER","index":0,"n_rows":29,"n_cols":9,"rows_kept":29,"merged":[[2,3,2,4]]}
[null,"MIN KLASSETIMEPLAN"]
[null,"HØSTSEMESTER"]
[null,null,"STARTTIDSPUNKT","TIDSINTERVALL",null,"ÅR"]
[null,null,"09:00:00",60,"(i minutter)"]
[null,"TID ","MAN","TIR","ONS","TOR","FRE","LØR","SØN"]
[null,{"$f":"Starttidspunkt+TIME(0,(ROW(A1)-1)*Tidsintervall,0)","v":"09:00:00"},"Frokost","Frokost","Frokost","Frokost","Frokost"]
[null,"10:00:00","Arbeid: Forelesning bygg B, rom 256"]
[null,"11:00:00",{"$nulls":3},"Fysikk: Lab \nBygg J, ROM 309"]
[null,"12:00:00"]
[null,"13:00:00"]
[null,"14:00:00"]
[null,"15:00:00"]
[null,"16:00:00"]
[null,"17:00:00"]
[null,"18:00:00"]
[null,"19:00:00"]
[null,"20:00:00"]
[null,"21:00:00"]
[null,"22:00:00"]
[null,"23:00:00"]
[null,1]
[null,1.0416666666666665]
[null,1.0833333333333335]
[null,1.125]
[null,1.1666666666666665]
[null,1.2083333333333335]
[null,1.25]
[null,1.2916666666666665]
[null,1.3333333333333335]

{"sheet":"STUDIEPOENG","index":1,"n_rows":17,"n_cols":8,"rows_kept":17}
[null,"HØYSKOLE"]
[null,"STUDIEPOENGPLANLEGGER"]
[null,"Navn på grad",{"$f":"År","v":"ÅR"}]
[null,"TOTAL FREMDRIFT",null,"TOTAL FREMDRIFT"]
[null,{"$f":"AVERAGE(Kurs[KARAKTER])","v":3.5},{"$f":"IFERROR(TEXT(AVERAGEIF(Kurs[FULLFØRT],\"Ja\",Kurs[KARAKTER]),\"0,00\"),\"0,00\")&\" Current GPA\"","v":"3,50 Current GPA"},{"$f":"COUNTIF(Kurs[FULLFØRT],\"Ja\")/COUNTA(Kurs[NAVN PÅ KURS])","v":0.6666666666666666},{"$f":"TEXT(COUNTIF(Kurs[FULLFØRT],\"Ja\")/COUNTA(Kurs[NAVN PÅ KURS]),\"0%\")&\" Fullført\"","v":"67% Fullført"}]
[null,"Merknad: Følgende studiepoengsammendrag settes inn automatisk av oppføringene dine i kursoversiktstabellen nedenfor"]
[null,"KRAV","TOTALE STUDIEPOENG","OPPTJENTE","PÅKREVDE"]
[null,"Hovedfag",{"$f":"IF(SUMIF(Kurs[KRAV],STUDIEPOENG!$B8,Kurs[STUDIEPOENG])=0,\"0\",SUMIF(Kurs[KRAV],STUDIEPOENG!$B8,Kurs[STUDIEPOENG]))","v":4},{"$f":"SUMIFS(Kurs[STUDIEPOENG],Kurs[KRAV],STUDIEPOENG!$B8,Kurs[FULLFØRT],\"Ja\")","v":4},{"$f":"SUMIF(Kurs[KRAV],STUDIEPOENG!$B8,Kurs[STUDIEPOENG])-SUMIFS(Kurs[STUDIEPOENG],Kurs[KRAV],STUDIEPOENG!$B8,Kurs[FULLFØRT],\"Ja\")","v":0}]
[null,"Generelle fag",{"$f":"IF(SUMIF(Kurs[KRAV],STUDIEPOENG!$B9,Kurs[STUDIEPOENG])=0,\"0\",SUMIF(Kurs[KRAV],STUDIEPOENG!$B9,Kurs[STUDIEPOENG]))","v":3},{"$f":"SUMIFS(Kurs[STUDIEPOENG],Kurs[KRAV],STUDIEPOENG!$B9,Kurs[FULLFØRT],\"Ja\")","v":0},{"$f":"SUMIF(Kurs[KRAV],STUDIEPOENG!$B9,Kurs[STUDIEPOENG])-SUMIFS(Kurs[STUDIEPOENG],Kurs[KRAV],STUDIEPOENG!$B9,Kurs[FULLFØRT],\"Ja\")","v":3}]
[null,"Valgfritt kurs",{"$f":"IF(SUMIF(Kurs[KRAV],STUDIEPOENG!$B10,Kurs[STUDIEPOENG])=0,\"0\",SUMIF(Kurs[KRAV],STUDIEPOENG!$B10,Kurs[STUDIEPOENG]))","v":2},{"$f":"SUMIFS(Kurs[STUDIEPOENG],Kurs[KRAV],STUDIEPOENG!$B10,Kurs[FULLFØRT],\"Ja\")","v":2},{"$f":"SUMIF(Kurs[KRAV],STUDIEPOENG!$B10,Kurs[STUDIEPOENG])-SUMIFS(Kurs[STUDIEPOENG],Kurs[KRAV],STUDIEPOENG!$B10,Kurs[FULLFØRT],\"Ja\")","v":0}]
[null,"Generelle studier",{"$f":"IF(SUMIF(Kurs[KRAV],STUDIEPOENG!$B11,Kurs[STUDIEPOENG])=0,\"0\",SUMIF(Kurs[KRAV],STUDIEPOENG!$B11,Kurs[STUDIEPOENG]))","v":"0"},{"$f":"SUMIFS(Kurs[STUDIEPOENG],Kurs[KRAV],STUDIEPOENG!$B11,Kurs[FULLFØRT],\"Ja\")","v":0},{"$f":"SUMIF(Kurs[KRAV],STUDIEPOENG!$B11,Kurs[STUDIEPOENG])-SUMIFS(Kurs[STUDIEPOENG],Kurs[KRAV],STUDIEPOENG!$B11,Kurs[FULLFØRT],\"Ja\")","v":0}]
[null,"Total",{"$f":"SUBTOTAL(109,STUDIEPOENG!$C$8:$C$11)","v":9},{"$f":"SUBTOTAL(109,STUDIEPOENG!$D$8:$D$11)","v":6},{"$f":"SUBTOTAL(109,STUDIEPOENG!$E$8:$E$11)","v":3}]
[null,"Kurs"]
[null,"NAVN PÅ KURS","KURSNUMMER","KRAV","STUDIEPOENG","FULLFØRT","KARAKTER","SEMESTER"]
[null,"Kurs 1","Tall","Hovedfag",4,"Ja",{"v":4,"d":"4.0"},"Semester 1"]
[null,"Kurs 2","Tall","Generelle fag",3,"Nei",null,"Semester 1"]
[null,"Kurs 3","Tall","Valgfritt kurs",2,"Ja",{"v":3,"d":"3.0"},"Semester 1"]

{"sheet":"BUDSJETT","index":2,"n_rows":15,"n_cols":4,"rows_kept":15,"merged":[[5,1,5,2]]}
[null,{"$f":"Høyskole","v":"HØYSKOLE"}]
[null,"BUDSJETTOVERSIKT"]
[null,"Mitt budsjett",{"$f":"År","v":"ÅR"}]
[null,"PROSENTANDEL AV INNTEKT BRUKT"]
[null,{"$f":"NETTO_MÅNEDLIGE_UTGIFTER/NETTO_MÅNEDLIGE_INNTEKTER","v":{"v":0.7454545454545455,"d":"kr 1"}}]
[null,{"$f":"B5","v":0.7454545454545455}]
[null,"NETTO MÅNEDLIGE INNTEKTER","NETTO MÅNEDLIGE UTGIFTER","SALDO"]
[null,{"$f":"C10","v":{"v":2750,"d":"kr 2,750"}},{"$f":"'NETTO MÅNEDLIGE UTGIFTER'!C4+SEMESTERUTGIFTER!D4","v":{"v":2050,"d":"kr 2,050"}},{"$f":"NETTO_MÅNEDLIGE_INNTEKTER-NETTO_MÅNEDLIGE_UTGIFTER","v":{"v":700,"d":"kr 700"}}]
[null,"Måneder i semester",4]
[null,"MÅNEDLIGE INNTEKTER",{"$f":"SUM(Månedligeinntekter[BELØP])","v":{"v":2750,"d":"kr 2,750"}}]
[null,"ARTIKKEL","BELØP"]
[null,"Fast inntekt",{"v":1500,"d":"kr 1,500"}]
[null,"Økonomisk støtte",{"v":500,"d":"kr 500"}]
[null,"Lån",{"v":500,"d":"kr 500"}]
[null,"Annen inntekt",{"v":250,"d":"kr 250"}]

{"sheet":"NETTO MÅNEDLIGE UTGIFTER","index":3,"n_rows":15,"n_cols":3,"rows_kept":15}
[null,{"$f":"Høyskole","v":"HØYSKOLE"}]
[null,"BUDSJETTOVERSIKT"]
[null,"Månedlige utgifter",{"$f":"År","v":"ÅR"}]
[null,"MÅNEDLIGE UTGIFTER",{"$f":"SUM(Månedligeutgifter[BELØP])","v":{"v":1675,"d":"kr 1,675"}}]
[null,"ARTIKKEL","BELØP"]
[null,"Leie",{"v":300,"d":"kr 300"}]
[null,"Verktøy",{"v":50,"d":"kr 50"}]
[null,"Mobiltelefon",{"v":75,"d":"kr 75"}]
[null,"Dagligvarer",{"v":250,"d":"kr 250"}]
[null,"Autotrekk",{"v":50,"d":"kr 50"}]
[null,"Studielån",{"v":500,"d":"kr 500"}]
[null,"Kredittkort",{"v":275,"d":"kr 275"}]
[null,"Forsikring",{"v":125,"d":"kr 125"}]
[null,"Underholdning",{"v":50,"d":"kr 50"}]
[null,"Diverse",{"v":0,"d":"kr 0"}]

{"sheet":"SEMESTERUTGIFTER","index":4,"n_rows":11,"n_cols":4,"rows_kept":11}
[null,{"$f":"Høyskole","v":"HØYSKOLE"}]
[null,"BUDSJETTOVERSIKT"]
[null,"SEMESTERUTGIFTER",{"$f":"År","v":"ÅR"}]
[null,"SEMESTERUTGIFTER (totalt/per måned)",{"$f":"SUM(Semesterutgifter[BELØP])","v":{"v":1500,"d":"kr 1,500"}},{"$f":"SUM(Semesterutgifter[PER MÅNED])","v":{"v":375,"d":"kr 375"}}]
[null,"ARTIKKEL","BELØP","PER MÅNED"]
[null,"Undervisning",{"v":750,"d":"kr 750"},{"$f":"Semesterutgifter[[#This Row],[BELØP]]/Måneder_i_semester","v":{"v":187.5,"d":"kr 188"}}]
[null,"Laboratorieavgifter",{"v":250,"d":"kr 250"},{"$f":"Semesterutgifter[[#This Row],[BELØP]]/Måneder_i_semester","v":{"v":62.5,"d":"kr 63"}}]
[null,"Bøker",{"v":500,"d":"kr 500"},{"$f":"Semesterutgifter[[#This Row],[BELØP]]/Måneder_i_semester","v":{"v":125,"d":"kr 125"}}]
[null,"Depositum",{"v":0,"d":"kr 0"},{"$f":"Semesterutgifter[[#This Row],[BELØP]]/Måneder_i_semester","v":{"v":0,"d":"kr 0"}}]
[null,"Transport",{"v":0,"d":"kr 0"},{"$f":"Semesterutgifter[[#This Row],[BELØP]]/Måneder_i_semester","v":{"v":0,"d":"kr 0"}}]
[null,"Andre avgifter",{"v":0,"d":"kr 0"},{"$f":"Semesterutgifter[[#This Row],[BELØP]]/Måneder_i_semester","v":{"v":0,"d":"kr 0"}}]

{"sheet":"BØKER","index":5,"n_rows":7,"n_cols":7,"rows_kept":7}
[null,{"$f":"Høyskole","v":"HØYSKOLE"}]
[null,"BOKOVERSIKT"]
[null,"Liste over bøker"]
[null,"TITTEL","FORFATTER","KURS","HVOR KAN DEN KJØPES?","ISBN","MERKNADER"]
[null,"Boktittel","Forfatter","Kurs","Sted","Tall"]
[null,"Boktittel","Forfatter","Kurs","Sted","Tall"]
[null,"Boktittel","Forfatter","Kurs","Sted","Tall"]